Cogmind - Beta 16 @@@ ROGUE MODE // 2025.11.04 @ 19:24:58 Player: Cameron Result: Destroyed by IN-EWG(R) with Subdweller Laser Performance ------------- Evolutions (0) 0 Regions Visited (2) 400 Robots Destroyed (45) 225 Value Destroyed (734) 734 Prototype IDs (2) 40 Alien Tech Used (0) 0 Bonus (0) 0 TOTAL SCORE: 1399 Bonus ------- None Cogmind --------- Core Integrity 0/250 Matter 300/300 Energy 100/100 System Corruption 11% Temperature Cool (6) Movement Rolling (95) Ox1 Location -10/Subcaves Parts ------- > --- POWER (1) -------- (None) > --- PROPULSION (2) --- Aluminum Leg Wheel > --- UTILITY (2) ------ Medium Storage Unit Machine Analyzer > --- WEAPON (2) ------- Beam Cannon Hammer (fused) > --- INVENTORY (10) --- Aluminum Leg Subdweller Monowheel Flight Unit Small Storage Unit Medium Storage Unit Signal Interpreter Heavy Riot Gun Subdweller Machine Gun Grenade Launcher Flamer Peak State ------------ > --- POWER ------------ Light Ion Engine > --- PROPULSION ------- Aluminum Leg Wheel > --- UTILITY ---------- Medium Storage Unit Machine Analyzer > --- WEAPON ----------- Beam Cannon Hammer > --- INVENTORY -------- Aluminum Leg Subdweller Monowheel Flight Unit Small Storage Unit Medium Storage Unit Signal Interpreter Heavy Riot Gun Subdweller Machine Gun Grenade Launcher Flamer [Rating: 10] Favorites ----------- Power Light Ion Engine Engine Light Ion Engine Propulsion Aluminum Leg Treads Light Treads Leg Aluminum Leg Wheel Wheel Utility Sensor Array Device Sensor Array Storage Medium Storage Unit Processor Machine Analyzer Weapon Hammer Energy Cannon Beam Cannon Ballistic Gun Assault Rifle Launcher Grenade Launcher Impact Weapon Hammer Build | -11 -10 -10 ------- Run | Yrd Mat Sub Slots Evolved . | . . . Power . | . . . Propulsion . | . . . Utility . | . . . Weapon . | . . . Parts Attached 22 | 6 13 3 Power 4 | 1 3 . Engine 4 | 1 3 . Core . | . . . Reactor . | . . . Propulsion 7 | 2 4 1 Treads 2 | 2 . . Leg 4 | . 4 . Wheel 1 | . . 1 Hover . | . . . Flight . | . . . Utility 6 | 1 3 2 Device 1 | . 1 . Storage 4 | 1 2 1 Processor 1 | . . 1 Hackware . | . . . Protection . | . . . Artifact . | . . . Weapon 5 | 2 3 . Energy Gun . | . . . Energy Cannon 1 | . 1 . Ballistic Gun 2 | 2 . . Ballistic Cannon . | . . . Launcher 1 | . 1 . Special Weapon . | . . . Impact Weapon 1 | . 1 . Slashing Weapon . | . . . Piercing Weapon . | . . . Special Melee Weapon . | . . . Unidentified Prototypes . | . . . Corrupted Parts 1 | . 1 . System Corruption 10 | . 10 . Parts Lost 9 | . 6 3 Power 4 | . 3 1 Propulsion 3 | . 2 1 Utility 1 | . . 1 Weapon 1 | . 1 . Highest Loss Streak 3 | . 3 2 To Critical Strikes 1 | . . 1 Average Backups 8 | 3 8 9 Power . | . . . Propulsion 2 | 2 2 3 Utility 3 | . 3 3 Weapon 2 | 1 2 3 Tool/Special . | . . . Unused Backups 16 | . 6 10 Power 1 | . 1 . Propulsion 7 | . 4 3 Utility 4 | . . 4 Weapon 4 | . 1 3 Tool/Special . | . . . Average Slot Usage (%) 89 | . 88 93 Engine 7 | . 6 11 Treads 10 | . 12 . Leg 16 | . 15 22 Device 10 | . 10 9 Storage 14 | . 14 14 Energy Cannon 3 | . 1 14 Ballistic Gun 10 | . 12 . Impact Weapon 13 | . 13 14 Peak Build Rating 10 | 6 8 10 Average Rating 6 | 4 6 7 On Entrance 4 | . 6 8 Avg Prop Armor Cover (%) 12 | . . 12 Naked Turns . | . . . Heaviest Build 19 | 12 19 19 Greatest Support 40 | 40 40 20 Greatest Overweight (x) 3 | . 3 1 Average Overweight (x) . | . . . Largest Inventory Capacity 10 | 8 10 10 Average Capacity 8 | 7 8 10 Most Carried 10 | 8 10 10 Average Carried 8 | 4 8 9 Final Capacity 10 | 8 10 10 Final Carried 10 | 6 10 10 Class Distribution -------------------- 100% | Mutant Dominant Class ---------------- Mutant | -10/Materials Mutant | -10/Subcaves Resources | -11 -10 -10 ----------- Run | Yrd Mat Sub Matter Collected 607 | 180 388 39 Remotely . | . . . Salvage Created 1066 | . 998 68 Parts 56 | . 53 3 Haulers Intercepted 2 | . 2 . Recyclers Shooed 4 | . 4 . Parts Field Recycled . | . . . Retrieved Matter . | . . . Parts Self-Destructed . | . . . Prevented . | . . . Parts Restored . | . . . Kills | -11 -10 -10 ------- Run | Yrd Mat Sub Combat Hostiles Destroyed 22 | . 20 2 Melee 6 | . 5 1 Guns 3 | . 3 . Cannons 3 | . 2 1 AOE 6 | . 6 . Classes Destroyed 10 | . 9 1 Worker 10 | . 10 . Builder 4 | . 4 . Tunneler 1 | . 1 . Hauler 2 | . 2 . Recycler 3 | . 3 . Operator 1 | . 1 . Watcher 2 | . 2 . Swarmer 9 | . 9 . Grunt 11 | . 11 . Subdweller 2 | . . 2 Best Kill Streak 11 | . 11 1 Combat Bots Only 8 | . 8 1 Max Kills in Single Turn 4 | . 4 1 Gunslinging . | . . . Exploded 4 | . 4 . Melee 1 | . 1 1 Uniques/NPCs Destroyed . | . . . Combat | -11 -10 -10 -------- Run | Yrd Mat Sub Hostile Shots Fired 159 | . 133 26 Missed 42 | . 34 8 Hits 117 | . 99 18 Projectile 117 | . 99 18 Critical Strikes 3 | . 1 2 Damage Taken 1427 | . 1033 394 Core 257 | . 174 83 Absorbed by Shields . | . . . Core Remaining (%) 100 | 100 . . Volleys Fired 67 | . 59 8 Largest 1 | . 1 1 Hottest 60 | . 60 60 Shots Fired 66 | . 58 8 Gun 30 | . 30 . Cannon 32 | . 24 8 Launcher 4 | . 4 . Special . | . . . Kinetic 30 | . 30 . Thermal 32 | . 24 8 Explosive 4 | . 4 . Electromagnetic . | . . . Robot Hit Streak 9 | . 4 9 Robot Miss Streak 4 | . 4 . Penetration Max . | . . . Secondary Targets . | . . . Shots Hit Robots 85 | . 68 17 Core Hits 34 | . 31 3 Critical Kills 2 | . 2 . Critical Parts Destroyed 8 | . 7 1 Critical Strikes 11 | . 9 2 Smash 11 | . 9 2 Melee Attacks 75 | . 62 13 Impact 75 | . 62 13 Slashing . | . . . Piercing . | . . . Sneak Attacks 14 | . 14 . Combat Hostiles . | . . . Follow-up Attacks . | . . . Damage Inflicted 2781 | . 2357 424 Guns 241 | . 241 . Cannons 335 | . 212 123 Explosions 643 | . 643 . Melee 1562 | . 1261 301 Ramming . | . . . Kinetic 241 | . 241 . Thermal 517 | . 394 123 Explosive 461 | . 461 . Electromagnetic . | . . . Impact 1562 | . 1261 301 Slashing . | . . . Piercing . | . . . Highest Corruption 11 | . 11 11 Average Corruption 10 | . 10 11 Corruption Purged . | . . . Corruption Blocked . | . . . Effects 37 | . 26 11 Message Errors 6 | . 6 . Matter Fused 5 | . 2 3 Heat Flow Errors 6 | . 3 3 Energy Discharges 3 | . 2 1 Parts Rejected 1 | . 1 . Parts Fused 2 | . 2 . Data Loss (minor) 6 | . 5 1 Misfires 2 | . 1 1 Alerts 2 | . 2 . Misdirections 1 | . . 1 Weapon Failures 3 | . 2 1 Overload Shots . | . . . Overflow Damage 551 | . 517 34 Projectiles . | . . . Explosions 31 | . 31 . Melee 520 | . 486 34 Knockbacks 7 | . 5 2 Impact 7 | . 5 2 Kinetic . | . . . Secondary . | . . . Self-Inflicted Damage 81 | . 81 . Shots 2 | . 2 . Rammed . | . . . Targets Rammed . | . . . Kicked . | . . . Crushed . | . . . Highest Temperature 254 | . 254 221 Average Temperature 61 | . 56 98 Received Heat Transfer 291 | . 279 12 Siege Activations . | . . . Martial Activations . | . . . Shielding Activations . | . . . Robots Disrupted . | . . . Combat Hostiles . | . . . Robots Corrupted 13 | . 13 . Combat Hostiles 4 | . 4 . Parts Fried 24 | . 22 2 Impact Corruptions 24 | . 22 2 Robots Melted . | . . . Combat Hostiles . | . . . Parts Melted . | . . . Heat Transferred 853 | . 594 259 Parts Sabotaged . | . . . Parts Stolen . | . . . Parts Stripped . | . . . Power Chain Reactions . | . . . Alert | -11 -10 -10 ------- Run | Yrd Mat Sub Maximum Alert Level 1 | . 1 . Low Security (%) 54 | 100 51 . Level 1 45 | . 48 . Level 2 . | . . . Level 3 . | . . . Level 4 . | . . . Level 5 . | . . . High Security . | . . . Max Security . | . . . Peak Influence 383 | . 383 . Initial . | . . . Average 140 | . 148 . Influence Increases 852 | . 852 . Destroy 0b10 Robot/C 400 | . 400 . Destroy 0b10 Robot/NC 115 | . 115 . Destroy Leader 88 | . 88 . Successful Hack 27 | . 27 . Disable Machine 105 | . 105 . Destroy Structure 57 | . 57 . Lose Combat Pursuer 60 | . 60 . Influence Decreases 808 | . 477 331 Entered New Map 181 | . . 181 Time Decay 556 | . 436 120 Lost Part 71 | . 41 30 Squads Dispatched 5 | . 5 . Investigation 5 | . 5 . Extermination . | . . . Reinforcement . | . . . Assault . | . . . Garrison . | . . . Intercept . | . . . Searches Triggered . | . . . Construction Impeded . | . . . Haulers Reinforced . | . . . Active Scanning Responses . | . . . Cargo Convoy Interrupts . | . . . Stealth | -11 -10 -10 --------- Run | Yrd Mat Sub Distress Signals 2 | . 2 . Communications Jammed . | . . . Distress Signals . | . . . Times Spotted 37 | . 34 3 Peak Tracking Total 8 | . 8 1 Tactical Retreats 3 | . 3 . Traps | -11 -10 -10 ------- Run | Yrd Mat Sub Traps Triggered 2 | . 2 . Indirectly . | . . . Trap Hack Attempts . | . . . Triggered . | . . . Disarmed . | . . . Reprogrammed . | . . . Reused . | . . . Traps Extracted . | . . . Installed . | . . . Triggered . | . . . Machines | -11 -10 -10 ---------- Run | Yrd Mat Sub Machines Disabled 7 | . 7 . Max in Single Turn 3 | . 3 . Machines Repaired . | . . . Machines Dismantled . | . . . Machines Sabotaged . | . . . Overloaded Fab Kills . | . . . Hacking | -11 -10 -10 --------- Run | Yrd Mat Sub Machines Accessed 7 | . 7 . Terminals 6 | . 6 . Fabricators . | . . . Repair Stations . | . . . Recycling Units 1 | . 1 . Scanalyzers . | . . . Garrison Access . | . . . Total Hacks 24 | . 24 . Successful 8 | . 8 . Failed 16 | . 16 . Catastrophic 4 | . 4 . Database Lockouts . | . . . Manual 13 | . 13 . Terminals 22 | . 22 . Fabricators . | . . . Repair Stations . | . . . Recycling Units 2 | . 2 . Scanalyzers . | . . . Garrison Access . | . . . Terminal Hacks 6 | . 6 . Robot Analysis 1 | . 1 . Prototype ID Bank 1 | . 1 . Terminal Index 2 | . 2 . Recall Investigation 1 | . 1 . Hauler Manifests 1 | . 1 . Fabricator Hacks . | . . . Repair Station Hacks . | . . . Recycling Unit Hacks 1 | . 1 . Report Inventory 1 | . 1 . Scanalyzer . | . . . Garrison Access Hacks . | . . . Unauthorized Hacks . | . . . Terminals . | . . . Fabricators . | . . . Repair Stations . | . . . Recycling Units . | . . . Scanalyzers . | . . . Garrison Access . | . . . Data Cores Recovered . | . . . Used . | . . . Hacking Detections 6 | . 6 . Full Trace Events 5 | . 5 . Feedback Events 1 | . 1 . Corruption 1 | . 1 . Feedback Blocked . | . . . Robot Schematics Acquired . | . . . Robots Built . | . . . Authchips . | . . . Time . | . . . Total Robot Build Rating . | . . . Part Schematics Acquired . | . . . Parts Built . | . . . Authchips . | . . . Time . | . . . Total Part Build Rating . | . . . Part Studies Acquired . | . . . Parts Repaired . | . . . Time . | . . . Parts Recycled . | . . . Recycled Matter . | . . . Retrieved Matter . | . . . Retrieved Components . | . . . Parts Scanalyzed . | . . . Part Schematics Acquired . | . . . Parts Damaged . | . . . Bothacking | -11 -10 -10 ------------ Run | Yrd Mat Sub Used RIF Installer . | . . . Robots Hacked . | . . . Non-combat . | . . . Combat . | . . . Robot Hacks Applied . | . . . Relay Couplers Released . | . . . Fabnet Peak Effective % . | . . . Robots Rewired . | . . . Allies Hacked . | . . . Hacks Repelled . | . . . Allies | -11 -10 -10 -------- Run | Yrd Mat Sub Total Allies . | . . . Largest Group . | . . . Highest-Rated Group . | . . . Highest-Rated Ally . | . . . Total Orders . | . . . Ally Attacks . | . . . Total Damage . | . . . Kills . | . . . Allies Corrupted . | . . . Allies Melted . | . . . Intel | -11 -10 -10 ------- Run | Yrd Mat Sub Active Infowar (turns) 1303 | . 1092 211 Sensors 1249 | . 1092 157 Machine Analysis 54 | . . 54 Robot Analysis Total 1 | . 1 . Derelict Logs Recovered . | . . . Drone Launches . | . . . Drone Recoveries . | . . . Exploration | -11 -10 -10 ------------- Run | Yrd Mat Sub Turns Passed 1722 | 83 1390 249 Spaces Moved 938 | 44 741 153 Core 7 | 2 5 . Treads 382 | 42 340 . Legs 501 | . 396 105 Wheels 48 | . . 48 Hover . | . . . Flight . | . . . Fastest Speed 50 | 50 120 95 Average Speed 135 | 155 138 115 Slowest Speed 200 | 160 200 190 Overloaded Moves . | . . . Propulsion Burnouts . | . . . Robots Hopped . | . . . Potential Cave-ins . | . . . Cave-ins Triggered . | . . . Exploration Rate (%) 33 | 4 85 10 Regions Visited 2 Branch Regions 1 Pre-discovered Areas . | . . . Known Exits Taken . | . . . Unknown Exits Taken 2 | 1 1 . Scrap Searched . | . . . Spaces Dug 2 | . 2 . Terrain Destroyed 60 | . 60 . Melee 2 | . 2 . Projectile . | . . . AOE 58 | . 58 . Terrain Rammed . | . . . Walls Destroyed . | . . . Machines Disabled . | . . . Actions | -11 -10 -10 --------- Run | Yrd Mat Sub Total 1189 | 57 935 197 Wait 42 | . 32 10 Move 936 | 43 740 153 Hop . | . . . Pick Up 28 | 8 15 5 Fast Attach 12 | 4 6 2 Attach 5 | 2 3 . Detach . | . . . Swap 10 | . 9 1 Drop 14 | . 9 5 Fire 67 | . 59 8 Melee 75 | . 62 13 Ram . | . . . Kick . | . . . Crush . | . . . Escape Stasis . | . . . Rewire . | . . . Trap . | . . . Miscellaneous . | . . . Route ------- -11/Scrapyard -10/Materials (discovered 5 exits: [*Mat x3] / [*Min] / [*Sub]) -10/Subcaves History --------- Turn | Location | Event 39 | -11/Scrapyard | Discovered new exit (range 15) 84 | -11/Scrapyard | Entered Materials 304 | -10/Materials | Build established: Mutant 339 | -10/Materials | Discovered new exit (range 4) 498 | -10/Materials | Discovered new exit (range 7) 620 | -10/Materials | Discovered new exit (range 12) 716 | -10/Materials | Destroyed 8 combat bots 720 | -10/Materials | System corruption reached 10% 725 | -10/Materials | Lost 3 parts (1p2n) 945 | -10/Materials | Discovered new exit (range 10) 1012 | -10/Materials | Discovered new exit (range 3) 1341 | -10/Materials | Core integrity fell below 50% 1474 | -10/Materials | Entered Subcaves 1475 | -10/Subcaves | Approached by a straggling Scientist 1590 | -10/Subcaves | Shifting Twisted Machinery released Unknown Energy Gun 1628 | -10/Subcaves | Core integrity fell below 20% 1723 | -10/Subcaves | Destroyed by IN-EWG(R) with Subdweller Laser Last Messages --------------- 01660_ Acquired Corrupted Sub. Monowheel. 01666_ Acquired Wheel. 01667_ Acquired 10 matter. 01669_ Acquired Machine Analyzer. 01672_ Tech Extrapolator violently self-destructs. 01672_ Lgt. Ion Engine destroyed. 01672_ Acquired 5 matter. 01673_ Subatomizers dissect the Corrupted Sub. Machine Gun. 01701_ System corrupted: FCS attempts to trigger Beam Cannon. 01701_ System corrupted: Beam Cannon misfires. 01701_ Subatomizers dissect the Corrupted Sub. Machine Gun. 01716_ IN-EWG(R) knocked back. 01718_ System corrupted: Heat flow error (+142). 01721_ YZ-RKR(z): "She is not going to be happy we haven't found any suitable candidates yet." [Achievement: Back For More] Map ----- +----------------------------------------------------+ | ???????????????????????????????? #?????????# | | ????????????????????????????????? #?????????# | | ??????????????????????????????????# #???????### | | ??????????????????????????????????# #?###???# | | ??????????????????????????????????# ### ###?# | | ??????????????????????????#?####### #?# # | | ???????????????????? # ## # # #?##? | | ????????????????????# ##??# | | ?????????????????????# #### | | ???????????????????????????# # # ### ### | | ??????????????????????????????## ######?## | | ??????????????????????????????# ##??####### | | ??????????????????????????????# #?## #???## | | ??????????????????????????????# ! ### ##???# | | ?????????????????????????????## #???? | | ?????????????????????????##### ##??? | | ???????????????????????##"""" ## ##?? | | ??????????????????????"# """""" % #### ### | | ??????????????????????"" """"""" " ##??# # | | ??????????????????????"" """""""" =##???# #### ## | | ??????????????????????"" """"###%&##???###??####? | | ??????????????????????#" """"??#[ #????????????? | | ???????????????????????# """#?## #????????????? | | ?????????????????# ""###"""""### #????????????? | | ?????????????????# "" """" ##????????????? | | ?????????????????? """R @ ###?????????????? | | ????????????????? ""; #"" ##???????????????? | | ????????????????? "??"""##" #####????????????????? | | ?????????????????????#" ?####????????????????????? | | ?????????????????????#"??????????????????????????? | | ????????????????????? ???????????????????????????? | | ????????????????????#????????????????????????????? | | ?????????????????????????????????????????????????? | | ?????????????????????????????????????????????????? | | ?????????????????????????????????????????????????? | | ?????????????????????????????????????????????????? | | ?????????????????????????????????????????????????? | | ?????????????????????????????????????????????????? | | ?????????????????????????????????????????????????? | | ?????????????????????????????????????????????????? | | ?????????????????????????????????????????????????? | | ?????????????????????????????????????????????????? | | ?????????????????????????????????????????????????? | | ?????????????????????????????????????????????????? | | ?????????????????????????????????????????????????? | | ?????????????????????????????????????????????????? | | ?????????????????????????????????????????????????? | | ?????????????????????????????????????????????????? | | ?????????????????????????????????????????????????? | | ?????????????????????????????????????????????????? | +----------------------------------------------------+ Best States ------------- Heat Dissipation 25 Energy Generation 10 Energy Capacity 250 Matter Stores 300 Matter Capacity 300 Sight Range 16 Robot Scan Range 14 Terrain Scan Density 10 Evasion (%) 55 Recoil Reduction 2 Item Schematics ----------------- None Robot Schematics ------------------ None Fabricated ------------ Nothing Repaired ---------- Nothing Studied --------- None Alien Tech Used ----------------- None Achievements -------------- Back For More Challenges ------------ None Game ------ Seed RingTerrainShredder Manual? 0 Play Time 00:18:36 Cumulative 51.5 hours Start 2025.11.04 @ 19:05:01 End 2025.11.04 @ 19:24:58 Sessions 1 Manual Loads 0 Difficulty Rogue Special Mode None Game No. 50 Rogue 50 Adventurer 0 Explorer 0 Win Type - Total 1 Types 1/0/0/0/0/0/0/0/0/0 Lore% 29 Gallery% 35 Achievement% 27 Wizard Run 0 Options --------- Layout 1 ASCII 0 Keyboard 0 Movement Numpad Keybinds 0 Fullscreen 2 Font 32/SmallcapsGlow Map View 50x35 Zoom Use 0% Tactical HUD 1 Map Filters NONE Filters NONE Steam 1 RUN: aab574be-e6b4-47f7-b0ed-bd34e71a0730